bitfinex/quotes_SOLUSD_20260309
["timestamp","ask_amount","ask_price","bid_price","bid_amount"]
[1773094107491,12.12381218,86.08,86.051,0.50712012]
[1773094107892,0.5066684,86.08,86.06,4.15011047]
[1773094108073,0.5066684,86.086,86.061,0.50712012]
[1773094108997,11.61504651,86.096,86.071,0.50712012]
[1773094109172,11.61504651,86.096,86.07,4.15011047]
[1773094109173,0.5066684,86.098,86.045,0.50712012]
[1773094109378,0.5066684,86.096,86.061,11.61966512]
[1773094110099,0.5066684,86.089,86.061,11.61966512]
[1773094110477,0.5066684,86.089,86.062,0.50712012]
[1773094112109,0.5066684,86.096,86.064,0.50712012]
[1773094112280,0.5066684,86.094,86.064,0.50712012]
[1773094112481,0.5066684,86.089,86.064,0.50712012]
[1773094113509,0.5066684,86.089,86.065,11.61912507]
[1773094113798,0.5066684,86.089,86.066,0.54115015]
[1773094114304,12.1630636,86.096,86.066,0.54115015]
[1773094114598,0.5480162,86.095,86.066,0.54115015]
[1773094117094,0.5480162,86.093,86.068,0.54115015]
[1773094120889,4.15011047,86.1,86.06,4.15011047]
[1773094120890,0.5480162,86.091,86.061,0.54115015]
[1773094121089,0.5480162,86.089,86.051,0.54115015]
[1773094121294,0.5480162,86.089,86.06,4.15011047]
[1773094121491,0.5480162,86.089,86.061,0.54115015]
[1773094121690,0.5480162,86.089,86.052,0.54115015]
[1773094122000,0.5480162,86.079,86.052,0.54115015]
[1773094122786,0.5480162,86.077,86.051,11.62101544]
[1773094123318,11.61737029,86.078,86.043,12.16324607]
[1773094123319,0.5480162,86.069,86.043,12.16324607]
[1773094124193,0.5480162,86.069,86.044,0.54115015]
[1773094125111,0.5480162,86.069,86.04,4.15011047]
[1773094125112,0.5480162,86.069,86.046,0.54115015]
[1773094125314,11.61828793,86.072,86.051,0.54115015]
[1773094125513,0.5480162,86.069,86.035,0.54115015]
[1773094126791,0.5480162,86.067,86.038,0.54115015]
[1773094127512,11.61872008,86.068,86.02,4.15011047]
[1773094127513,0.5480162,86.049,86.02,4.15011047]
[1773094127710,0.5480162,86.049,86.022,11.62486471]
[1773094127894,0.5480162,86.049,86.028,29.39050322]
[1773094128410,40.66552028,86.068,86.028,13.79227152]
[1773094128411,0.54602718,86.039,86.028,13.79227152]
[1773094128596,0.54602718,86.039,86.028,12.86485781]
[1773094128796,11.62277133,86.038,86.006,0.51966822]
[1773094129012,4.15011047,86.02,85.99,0.56335905]
[1773094129202,11.62277133,86.038,85.981,0.56335905]
[1773094129203,4.15011047,86.01,85.981,0.56335905]
[1773094129599,0.28432314,86.03,85.981,0.56335905]
[1773094129600,4.15011047,86.02,85.981,0.56335905]
[1773094130909,11.62533858,86.019,85.983,0.56335905]
[1773094131494,4.15011047,86.0,85.97,0.2]
[1773094132010,4.15011047,86.0,85.97,0.76335905]
[1773094132188,4.15011047,85.99,85.97,0.2]
[1773094132722,4.15011047,85.99,85.951,0.56335905]
[1773094132898,4.15011047,85.98,85.951,0.56335905]
[1773094133098,4.15011047,85.98,85.952,0.56335905]
[1773094133820,4.15011047,85.97,85.95,0.2]
[1773094134021,4.15011047,85.96,85.94,0.2]
[1773094134228,4.15011047,85.97,85.941,0.56335905]
[1773094134922,11.66490531,85.969,85.941,0.56335905]
[1773094135122,11.63209994,85.969,85.941,0.56335905]
[1773094135840,4.15011047,85.97,85.942,0.56335905]
[1773094136910,0.06052883,85.985,85.951,0.56335905]
[1773094137223,0.06052883,85.985,85.953,0.56335905]
[1773094137522,0.06052883,85.979,85.941,11.63588619]
[1773094137704,4.15011047,85.97,85.942,0.56335905]
[1773094139325,11.62939445,85.989,85.951,0.56335905]
[1773094139524,4.15011047,85.98,85.951,0.56335905]
[1773094140333,0.10093069,85.979,85.951,0.56335905]
[1773094140845,0.11410207,86.01,85.96,4.15011047]
[1773094141135,50.64025423,86.04,85.981,0.56335905]
[1773094141136,11.74033716,86.013,85.981,0.56335905]
[1773094141344,11.62398726,86.029,85.991,0.56335905]
[1773094141516,4.15011047,86.02,85.991,0.56335905]
[1773094141710,4.15534193,86.02,85.991,0.56335905]
[1773094141915,0.12710406,86.019,85.991,0.56335905]
[1773094142537,0.12710406,86.019,85.981,0.56335905]
[1773094142747,0.12710406,86.009,85.981,0.56335905]
[1773094143036,0.13995216,86.008,85.982,11.63034123]
[1773094143414,11.62593147,86.015,85.991,0.59636312]
[1773094144024,11.62527805,86.02,85.991,0.59636312]
[1773094144217,11.62527805,86.02,86.001,0.59636312]
[1773094144616,4.15534193,86.03,86.001,0.59636312]
[1773094144617,11.62440218,86.026,86.001,0.59636312]
[1773094145934,11.62440218,86.026,85.98,0.59636312]
[1773094145935,0.1899133,86.019,85.98,0.59636312]
[1773094146118,0.1899133,86.019,85.979,11.63074704]
[1773094146119,4.15534193,86.02,85.991,0.59636312]
[1773094146325,4.34525523,86.02,85.991,0.59636312]
[1773094146834,0.20203813,86.019,85.991,0.59636312]
[1773094147543,0.20203813,86.017,85.983,11.63010191]
[1773094147845,0.20203813,86.017,85.984,0.59636312]
[1773094148357,0.214034,86.009,85.977,0.59636312]
[1773094148643,0.214034,85.999,85.971,0.59636312]
[1773094149623,11.62817739,85.998,85.972,11.63169403]
[1773094149841,0.23761319,86.017,85.981,0.59636312]
[1773094150028,11.62533858,86.019,85.991,0.59636312]
[1773094152222,40.68868504,86.019,85.991,0.59636312]
[1773094152745,40.94745882,86.019,85.991,0.59636312]
[1773094152940,4.15534193,86.01,85.983,0.59636312]
[1773094153744,11.62669023,86.009,85.983,0.59636312]
[1773094154543,0.27760299,86.017,85.985,0.59636312]
[1773094154936,11.62547373,86.018,85.966,0.59636312]
[1773094154937,0.28685545,85.999,85.966,0.59636312]
[1773094155136,4.15534193,85.99,85.966,0.59636312]
[1773094155331,0.28685545,85.999,85.966,0.59636312]
[1773094155943,11.62817739,85.998,85.966,0.59636312]
[1773094156445,11.62817739,85.998,85.971,0.59636312]
[1773094159044,11.62817739,85.998,85.941,0.28432314]
[1773094159045,0.60765119,85.979,85.94,4.35534193]
[1773094159346,4.15534193,85.96,85.94,0.2]
[1773094159553,0.60765119,85.964,85.94,0.2]
[1773094160238,4.15534193,85.97,85.94,4.35534193]
[1773094160629,4.15534193,85.98,85.95,4.15534193]
[1773094160830,4.15534193,85.99,85.95,4.15534193]
[1773094161044,3.69383402,86.007,85.94,4.35534193]
[1773094161045,0.60765119,85.979,85.94,4.35534193]
[1773094161229,4.15534193,85.97,85.942,0.59636312]
[1773094161748,4.76299312,85.97,85.942,0.59636312]
[1773094161923,0.60765119,85.969,85.942,0.59636312]
[1773094162124,4.15534193,85.98,85.942,0.59636312]
[1773094163134,11.62939445,85.989,85.961,0.59636312]
[1773094163338,0.60765119,85.988,85.961,0.59636312]
[1773094164247,11.62939445,85.989,85.961,0.59636312]
[1773094164946,4.15534193,85.98,85.961,0.59636312]
[1773094165143,11.63074704,85.979,85.961,0.59636312]
[1773094165338,11.63074704,85.979,85.953,0.59636312]
[1773094165641,4.15534193,85.97,85.942,0.59636312]
[1773094166436,0.60765119,85.969,85.94,0.2]
[1773094166639,4.15534193,85.95,85.93,0.79636312]
[1773094166840,4.15534193,85.95,85.93,0.2]
[1773094167558,11.63362374,85.958,85.931,0.59636312]
[1773094169533,11.63362374,85.958,85.932,11.63710841]
[1773094169734,4.15534193,85.96,85.933,0.59636312]
[1773094170644,11.63312364,85.962,85.935,0.59636312]
[1773094170852,4.15534193,85.96,85.935,0.59636312]
[1773094171057,11.63312364,85.962,85.935,0.59636312]
[1773094172761,4.15534193,85.97,85.935,0.59636312]
[1773094173057,0.60765119,85.976,85.941,0.59636312]
[1773094173436,4.15534193,85.99,85.961,0.75786488]
[1773094173679,11.62939445,85.989,85.961,0.75786488]
[1773094174462,12.37260675,85.989,85.961,0.75786488]
[1773094174643,11.62939445,85.989,85.961,0.75786488]
[1773094175553,0.7432123,85.989,85.961,0.75786488]
[1773094175761,4.15534193,85.97,85.943,0.75786488]
[1773094176753,0.7432123,85.979,85.943,0.75786488]
[1773094177551,11.63088231,85.978,85.945,0.75786488]
[1773094178142,11.14277216,85.99,85.961,0.75786488]
[1773094179241,11.62912397,85.991,85.961,0.75786488]
[1773094179556,29.07242556,85.993,85.962,11.63304716]
[1773094179753,29.07242556,85.993,85.963,0.75786488]
[1773094181559,11.62804218,85.999,85.963,0.75786488]
[1773094181951,0.7432123,85.998,85.964,11.63277651]
[1773094182144,0.7432123,85.979,85.941,40.72561407]
[1773094182455,0.7432123,85.979,85.942,0.75786488]
[1773094183941,0.7432123,85.977,85.944,0.75786488]
[1773094185175,0.7432123,85.977,85.95,11.14277216]
[1773094185471,0.7432123,85.977,85.95,11.90063704]
[1773094185975,12.37436517,85.976,85.951,11.63453595]
[1773094186176,0.7432123,85.975,85.951,11.63453595]
[1773094186471,0.7432123,85.969,85.944,11.63539283]
[1773094186875,0.7432123,85.969,85.945,0.75786488]
[1773094188353,0.7432123,85.969,85.947,0.75786488]
[1773094188553,0.7432123,85.969,85.95,11.14277216]
[1773094189374,0.7432123,85.969,85.947,0.75786488]
[1773094189570,0.7432123,85.979,85.95,11.90063704]
[1773094189779,11.62885351,85.993,85.961,0.75786488]
[1773094190280,0.76978657,85.992,85.961,0.75786488]
[1773094190576,11.62912397,85.991,85.963,0.81762879]
[1773094193276,0.76978657,86.015,85.98,11.14277216]
[1773094193459,0.76978657,86.009,85.974,0.81762879]
[1773094193654,0.76978657,85.999,85.974,0.81762879]
[1773094194157,0.76978657,85.999,85.965,0.81762879]
[1773094195055,0.76978657,85.999,85.971,0.81762879]
[1773094195259,0.76978657,85.999,85.973,0.81762879]
[1773094195260,11.62817739,85.998,85.973,0.81762879]
[1773094195955,0.76978657,85.997,85.933,0.81762879]
[1773094196159,145.35221746,85.998,85.933,0.81762879]
[1773094196160,11.14277216,85.97,85.933,0.81762879]
[1773094196562,11.14277216,85.97,85.932,40.72981552]
[1773094196563,0.76978657,85.983,85.951,0.81762879]
[1773094196971,11.14277216,85.98,85.951,0.81762879]
[1773094197372,11.63074704,85.979,85.951,0.81762879]
[1773094198060,11.14277216,85.99,85.951,0.81762879]
[1773094198254,0.76978657,85.989,85.961,0.81762879]
[1773094198459,0.76978657,85.989,85.951,0.81762879]
[1773094199084,0.76978657,85.989,85.96,11.14277216]
[1773094199377,0.76978657,85.987,85.96,0.81762879]
[1773094201478,0.76978657,85.977,85.941,0.81762879]
[1773094201983,0.76978657,85.977,85.951,0.81762879]
[1773094202182,4.15860572,85.99,85.94,11.63600166]
[1773094202183,11.62917698,85.991,85.961,0.81762879]
[1773094203079,4.15860572,85.99,85.961,0.81762879]
[1773094203695,11.62939445,85.989,85.961,0.81762879]
[1773094203881,0.81505456,85.988,85.961,0.81762879]
[1773094204075,0.81505456,85.979,85.951,0.85994916]
[1773094204274,12.44444901,85.989,85.961,0.85994916]
[1773094204489,0.81505456,85.988,85.961,0.85994916]
[1773094205597,0.81505456,85.988,85.951,11.63453595]
[1773094205598,11.62966494,85.987,85.963,0.85994916]
[1773094206489,11.62829458,85.998,85.971,0.85994916]
[1773094207186,11.62829458,85.998,85.962,0.85994916]
[1773094207187,0.81505456,85.989,85.962,0.85994916]
[1773094207884,12.44458426,85.988,85.962,0.85994916]
[1773094208086,0.81505456,85.987,85.962,0.85994916]
[1773094209888,4.15833595,85.99,85.95,4.15833595]
[1773094209889,0.81505456,85.985,85.955,0.85994916]
[1773094210593,11.62926838,85.99,85.955,0.85994916]
[1773094210787,11.62926838,85.99,85.961,0.85994916]
[1773094210996,0.81505456,85.989,85.961,0.85994916]
[1773094211225,0.81505456,86.008,85.966,0.85994916]
[1773094211405,0.81505456,85.999,85.966,0.85994916]
[1773094211979,11.62817739,85.998,85.968,0.85994916]
[1773094212190,11.62817739,85.998,85.971,0.85994916]
[1773094213877,0.81505456,85.997,85.962,0.85994916]
[1773094214193,0.81505456,85.989,85.964,0.85994916]
[1773094215501,11.6295297,85.988,85.964,0.85994916]
[1773094216204,11.62736616,86.004,85.971,0.85994916]
[1773094216498,11.62688835,86.008,85.971,0.85994916]
[1773094217205,0.81505456,86.007,85.971,0.85994916]
[1773094217788,11.62688835,86.008,85.981,0.85994916]
[1773094218903,11.62614953,86.013,85.983,0.85994916]
[1773094219906,0.81505456,86.012,85.983,0.85994916]
[1773094220906,11.62641987,86.011,85.991,0.85994916]
[1773094225210,0.81505456,86.009,85.983,0.85994916]
[1773094225392,4.15833595,85.99,85.964,0.85994916]
[1773094225712,0.81505456,85.99,85.964,0.85994916]
[1773094226501,0.81505456,86.009,85.971,0.85994916]
[1773094227414,11.62682541,86.008,85.981,0.85994916]
[1773094227608,0.81505456,86.007,85.981,0.85994916]
[1773094229610,0.81505456,86.042,85.991,0.85994916]
[1773094229806,0.81505456,86.042,85.96,4.15833595]
[1773094229807,0.81505456,86.019,85.98,0.85994916]
[1773094229996,0.81505456,86.019,85.981,0.85994916]
[1773094230200,0.81505456,86.019,85.972,11.63169403]
[1773094230201,0.81505456,86.019,85.991,0.85994916]
[1773094230915,0.81505456,86.019,85.972,40.71092912]
[1773094230916,0.81505456,86.029,86.001,0.85994916]
[1773094231120,4.15833595,86.04,86.001,0.85994916]
[1773094231121,0.81505456,86.039,86.001,0.85994916]
[1773094231504,0.81505456,86.037,86.001,0.85994916]
[1773094231704,0.81505456,86.037,86.011,0.85994916]
[1773094232214,40.67969966,86.038,86.011,0.85994916]
[1773094232816,11.62277133,86.038,86.011,0.85994916]
[1773094233204,11.62277133,86.038,86.021,0.85994916]
[1773094233499,0.86027072,86.037,86.0,4.15833595]
[1773094234415,0.86027072,86.037,86.01,4.15833595]
[1773094234621,0.86027072,86.048,86.01,4.15833595]
[1773094235625,0.86027072,86.048,86.011,0.86513687]
[1773094236020,0.86027072,86.046,86.02,4.15833595]
[1773094236221,11.62155566,86.047,86.021,0.86513687]
[1773094236610,40.66032365,86.079,86.041,0.86513687]
[1773094236810,1.00243229,86.077,86.041,0.86513687]
[1773094237014,0.86027072,86.069,86.031,0.86513687]
[1773094237229,0.86027072,86.049,86.01,4.15833595]
[1773094237409,0.86027072,86.039,86.011,0.86513687]
[1773094238227,0.86027072,86.037,86.011,0.86513687]
[1773094240323,11.62304151,86.036,86.011,0.86513687]
[1773094241628,0.86027072,86.036,86.011,0.86513687]
[1773094243915,11.62317661,86.035,86.013,0.86513687]
[1773094244116,11.62262098,86.04,86.02,4.15833595]
[1773094244314,11.62262098,86.04,86.021,0.86513687]
[1773094244816,12.4828917,86.04,86.021,0.86513687]
[1773094246952,12.4828917,86.04,86.014,0.88661194]
[1773094246953,0.93088562,86.039,86.014,0.88661194]
[1773094247418,0.93088562,86.039,86.008,0.88661194]
[1773094248035,44.83720983,86.04,85.991,0.88661194]
[1773094248036,0.93088562,86.028,85.991,0.88661194]
[1773094248342,0.93088562,86.009,85.978,0.88661194]
[1773094249934,0.93088562,86.009,85.981,0.88661194]
[1773094250236,11.62682541,86.008,85.983,0.88661194]
[1773094251931,0.93088562,86.012,85.985,0.88661194]
[1773094254117,0.93088562,86.01,85.985,0.88661194]
[1773094254520,0.93088562,86.009,85.98,4.15833595]
[1773094255323,0.93088562,86.009,85.971,0.88661194]
[1773094255524,0.93088562,85.999,85.971,0.88661194]
[1773094256337,0.93088562,85.997,85.963,0.88661194]
[1773094257834,0.93088562,85.995,85.963,0.88661194]
[1773094258148,58.13209938,86.011,85.96,4.15833595]
[1773094258149,0.93088562,86.025,85.968,0.88661194]
[1773094258324,0.93088562,86.039,86.01,4.15833595]
[1773094259439,0.93088562,86.039,86.02,4.15833595]
[1773094259841,0.93088562,86.037,86.01,4.15833595]
[1773094260627,0.93088562,86.029,85.99,4.15833595]
[1773094260831,0.93088562,86.019,85.99,4.15833595]
[1773094261033,0.93088562,86.009,85.971,0.88661194]
[1773094261234,0.93088562,86.009,85.981,0.88661194]
[1773094261934,12.55771103,86.008,85.981,0.88661194]
[1773094262129,4.15833595,86.02,85.991,0.88661194]
[1773094262130,0.93088562,86.016,85.991,0.88661194]
[1773094262346,0.93088562,86.014,85.991,0.88661194]
[1773094262643,0.93088562,86.014,85.984,0.88661194]
[1773094262944,0.93088562,86.014,85.99,4.15833595]
[1773094263628,0.93088562,86.014,85.961,0.28432314]
[1773094263629,0.93088562,86.014,85.98,4.15596096]
[1773094263949,4.15596096,86.0,85.966,0.98748947]
[1773094264152,0.90704758,85.999,85.97,4.15596096]
[1773094264447,0.90704758,86.011,85.981,0.98748947]
[1773094264631,11.62614953,86.013,85.99,5.14345043]
[1773094265038,12.53319711,86.013,85.99,0.98748947]
[1773094266147,11.62547829,86.018,85.991,0.98748947]
[1773094268052,11.62547829,86.018,85.993,0.98748947]
[1773094268255,0.90704758,86.017,85.993,0.98748947]
[1773094270944,0.90704758,86.017,85.994,12.61620775]
[1773094271271,58.10548738,86.051,85.994,12.61620775]
[1773094271272,11.62342848,86.034,86.011,0.98748947]
[1773094271447,0.90704758,86.033,86.011,0.98748947]
[1773094272154,0.90704758,86.033,86.0,4.15596096]
[1773094273444,0.90704758,86.033,85.971,0.28432314]
[1773094273445,0.90704758,86.009,85.978,0.98748947]
[1773094273830,0.90704758,86.009,85.981,0.98748947]
[1773094274750,0.90704758,86.009,85.973,30.06612773]
[1773094274947,0.90704758,86.009,85.973,0.98748947]
[1773094275545,0.90704758,86.007,85.975,0.98748947]
[1773094275847,0.90704758,86.012,85.981,0.98748947]
[1773094276550,0.90704758,86.009,85.974,11.63142345]
[1773094277857,0.90704758,86.007,85.974,11.63142345]
[1773094278838,0.90704758,86.007,85.981,0.98748947]
[1773094279044,0.90704758,86.007,85.974,11.63142345]
[1773094279045,11.62682541,86.008,85.991,0.98748947]
[1773094279559,11.62682541,86.008,85.981,0.98748947]
[1773094280764,0.90704758,86.007,85.97,16.77538065]
[1773094280962,0.90704758,86.007,85.971,0.98748947]
[1773094281465,0.90704758,86.017,85.991,0.98748947]
[1773094283065,0.90704758,86.017,85.993,0.98748947]
[1773094283770,11.62574404,86.016,85.993,0.98748947]
[1773094284153,0.28432314,86.04,86.0,4.15596096]
[1773094284154,29.05663872,86.039,86.0,4.15596096]
[1773094284469,0.90704758,86.026,86.001,0.98748947]
[1773094285753,0.90704758,86.026,86.003,0.98748947]
[1773094285956,29.05692833,86.038,86.002,11.62763656]
[1773094285957,0.90704758,86.038,86.011,0.98748947]
[1773094288074,0.90704758,86.036,86.011,0.98748947]
[1773094288474,0.90704758,86.036,86.004,0.98748947]
[1773094288880,0.90704758,86.036,86.01,4.15596096]
[1773094289180,0.90704758,86.036,86.009,0.98748947]
[1773094290386,0.90704758,86.029,86.002,0.98748947]
[1773094293081,0.90704758,86.034,86.004,0.98748947]
[1773094293263,0.90704758,86.034,86.01,4.15596096]
[1773094293458,0.90704758,86.034,86.011,0.94600978]
[1773094294681,0.2,86.08,86.024,3.69383402]
[1773094294860,0.2,86.08,86.07,4.15596096]
[1773094295054,6.26857329,86.08,86.07,4.15596096]
[1773094295273,0.2,86.08,86.07,4.15596096]
[1773094296366,11.61586007,86.09,86.07,5.10197074]
[1773094297174,0.2,86.1,86.071,0.94600978]
[1773094297372,12.57647251,86.109,86.09,4.15596096]
[1773094297559,12.57647251,86.109,86.071,11.61831511]
[1773094297560,0.96328458,86.124,86.101,0.94600978]
[1773094297960,11.61049123,86.129,86.11,4.15596096]
[1773094298767,11.60989046,86.134,86.12,4.15596096]
[1773094299088,11.60914336,86.139,86.11,5.10197074]
[1773094299581,11.60914336,86.139,86.11,12.04417901]
[1773094300377,40.63200176,86.139,86.11,12.04417901]
[1773094300881,0.96328458,86.134,86.11,12.04417901]
[1773094301083,0.96328458,86.134,86.11,11.09816923]
[1773094301777,0.96328458,86.134,86.071,3.69383402]
[1773094301778,1.06328458,86.13,86.1,11.09816923]
[1773094302868,0.96328458,86.128,86.1,11.09816923]
[1773094303068,0.96328458,86.128,86.09,11.09816923]
[1773094304678,0.96328458,86.128,86.09,12.04417901]
[1773094305394,0.96328458,86.126,86.09,12.04417901]
[1773094305770,0.96328458,86.126,86.09,11.09816923]
[1773094305985,0.96328458,86.126,86.083,0.97119925]
[1773094305986,0.95926481,86.125,86.083,0.97119925]
[1773094306183,0.95926481,86.124,86.083,0.97119925]
[1773094306383,0.95926481,86.124,86.09,11.09816923]
[1773094308671,0.95926481,86.122,86.091,0.97119925]
[1773094309290,0.95926481,86.119,86.08,11.09816923]
[1773094309484,40.6395504,86.123,86.063,29.04833788]
[1773094309485,0.95926481,86.109,86.07,11.09816923]
[1773094309670,0.95926481,86.109,86.071,0.97119925]
[1773094310589,11.09816923,86.1,86.06,11.09816923]
[1773094310792,11.09816923,86.1,86.04,29.05612973]
[1773094310793,0.95926481,86.089,86.05,22.71922346]
[1773094312688,11.09816923,86.09,86.05,23.18158766]
[1773094312689,0.95926481,86.087,86.05,23.18158766]
[1773094313077,0.95926481,86.087,86.051,0.46396486]
[1773094314698,0.95926481,86.085,86.05,11.09816923]
[1773094315191,0.95926481,86.085,86.05,11.56527372]
[1773094315600,0.95926481,86.085,86.051,0.46710449]
[1773094315796,0.95926481,86.069,85.994,0.46710449]
[1773094315996,0.95926481,86.059,86.014,0.46865657]
[1773094316892,0.95926481,86.057,86.02,11.09816923]
[1773094317200,0.95926481,86.039,86.006,11.62709578]
[1773094317899,0.95926481,86.039,86.006,40.69483524]
[1773094318098,0.95926481,86.039,86.006,11.62709578]
[1773094318997,0.95926481,86.038,86.006,0.47169372]
[1773094320095,0.95926481,86.029,85.99,11.09816923]
[1773094320413,0.95926481,86.029,85.99,11.57283913]
[1773094320795,0.95926481,86.017,85.99,0.4746699]
[1773094320999,0.95926481,86.009,85.975,11.63128816]
[1773094321193,0.95926481,86.009,85.976,0.47612963]
[1773094321394,0.95926481,86.029,85.991,0.47612963]
[1773094321618,0.95926481,86.029,85.975,40.70950857]
[1773094321619,0.95926481,86.035,86.001,0.47612963]
[1773094322002,0.95926481,86.035,86.01,11.09816923]
[1773094322504,12.58244142,86.035,86.01,11.09816923]
[1773094322702,0.95926481,86.034,86.01,11.09816923]
[1773094323002,0.95926481,86.034,86.011,11.62641987]
[1773094323837,11.09816923,86.05,86.012,0.48039823]
[1773094323838,0.96850341,86.042,86.012,0.48039823]
[1773094324812,0.96850341,86.049,86.02,11.12557028]
[1773094325004,46.44769472,86.119,86.021,0.48178693]
[1773094325005,0.96850341,86.052,86.021,0.48178693]
[1773094325314,0.96850341,86.06,86.031,0.48316493]
[1773094325500,12.58736593,86.067,86.04,11.60873521]
[1773094325699,0.96850341,86.066,86.04,11.60873521]
[1773094325900,0.96850341,86.066,86.04,11.12557028]
[1773094326517,0.96850341,86.066,86.031,0.48453915]
[1773094326716,11.61886252,86.067,86.02,11.12557028]
[1773094326717,0.96850341,86.059,86.02,11.12557028]
[1773094326900,0.96850341,86.057,86.021,11.62506829]
[1773094327816,0.96850341,86.057,86.021,12.11094788]
[1773094328014,0.96850341,86.057,86.021,11.62506829]
[1773094328214,0.96850341,86.057,86.022,0.48720117]
[1773094329100,0.96850341,86.049,86.016,11.62568581]
[1773094329903,0.96850341,86.049,86.01,11.12557028]
[1773094329904,0.96850341,86.039,86.001,0.4898288]
[1773094330115,0.96850341,86.039,86.011,0.4898288]
[1773094332422,11.62277133,86.038,86.012,11.6262847]
[1773094332601,12.59127474,86.038,86.012,11.6262847]
[1773094332922,0.96850341,86.037,86.012,11.6262847]
[1773094336502,0.96850341,86.035,86.012,11.6262847]
[1773094337102,0.96850341,86.047,86.02,11.12557028]
[1773094337525,0.96850341,86.047,86.013,0.49221715]
[1773094339330,0.96850341,86.045,86.015,0.49257791]
[1773094340725,0.96850341,86.045,86.02,11.12557028]
[1773094340935,0.96850341,86.045,86.014,40.69105028]
[1773094341313,0.96850341,86.043,86.014,11.62601436]
[1773094342424,0.96850341,86.039,86.0,4.15319876]
[1773094343432,0.96850341,86.037,86.004,11.62726452]
[1773094344339,0.96850341,86.037,86.011,0.49345321]
[1773094345106,0.96850341,86.037,86.011,0.4936333]
[1773094345309,0.96850341,86.037,86.01,4.15319876]
[1773094345310,0.96850341,86.059,86.021,0.4936333]
[1773094345720,0.96850341,86.058,86.022,11.62493315]
[1773094345931,0.96850341,86.058,86.03,4.15319876]
[1773094348921,12.58870862,86.057,86.032,0.49413645]
[1773094349120,0.96850341,86.057,86.04,4.15319876]
[1773094349324,0.96850341,86.069,86.031,11.62371703]
[1773094349639,0.96850341,86.069,86.032,0.4942939]
[1773094349935,0.96850341,86.069,86.04,4.15319876]
[1773094350521,0.96850341,86.069,86.032,0.49445305]
[1773094351543,3.69383402,86.087,86.031,11.62371703]
[1773094351544,0.96850341,86.067,86.031,11.62371703]
[1773094351722,0.96850341,86.067,86.032,0.49460762]
[1773094352238,0.96850341,86.067,86.04,4.15319876]
[1773094352440,0.96850341,86.067,86.032,0.49460762]
[1773094353048,0.96850341,86.067,86.041,0.4949054]
[1773094353224,0.96850341,86.065,86.041,11.6223258]
[1773094353424,0.96850341,86.065,86.041,11.62236608]
[1773094354242,0.96850341,86.065,86.042,0.49520576]
[1773094354836,11.61817179,86.073,86.042,0.49520576]
[1773094355042,1.00459003,86.072,86.05,4.15319876]
[1773094355245,1.00459003,86.072,86.051,11.62101544]
[1773094356850,11.61831511,86.071,86.051,11.62101544]
[1773094357025,12.62290514,86.071,86.051,11.62101544]
[1773094357232,1.00459003,86.07,86.044,0.49562887]
[1773094357432,1.00459003,86.07,86.05,4.15319876]
[1773094358044,1.00459003,86.087,86.051,0.49562887]
[1773094358427,1.00459003,86.087,86.06,4.15319876]
[1773094358634,11.61602081,86.088,86.061,0.49577124]
[1773094358945,1.00459003,86.087,86.061,0.49577124]
[1773094359448,1.00459003,86.085,86.061,11.61963797]
[1773094360044,1.00459003,86.085,86.06,4.15319876]
[1773094360832,1.00459003,86.085,86.056,11.62023227]
[1773094361032,1.00459003,86.085,86.052,11.62081389]
[1773094361751,11.61656056,86.084,86.052,11.62081389]
[1773094362048,1.00459003,86.083,86.05,4.15319876]
[1773094362255,1.00459003,86.083,86.043,11.62209592]
[1773094363833,1.00459003,86.081,86.043,11.62209592]
[1773094365043,11.61710037,86.08,86.043,11.62209592]
[1773094365253,1.00459003,86.079,86.043,11.62209592]
[1773094365656,1.00459003,86.079,86.05,4.15319876]
[1773094367234,1.00459003,86.077,86.051,11.62101544]
[1773094369366,1.00459003,86.077,86.053,12.11809178]
[1773094369654,1.00459003,86.077,86.06,4.15319876]
[1773094370557,11.61764022,86.076,86.06,4.15319876]
[1773094370762,0.97352487,86.075,86.053,11.62074535]
[1773094371140,0.97352487,86.075,86.038,0.49758877]
[1773094371364,0.97352487,86.073,86.042,11.622231]
[1773094371544,0.97352487,86.073,86.042,12.11981977]
[1773094371740,0.97352487,86.073,86.05,4.15319876]
[1773094374748,0.97352487,86.073,86.051,11.62101544]
[1773094376272,0.97352487,86.071,86.051,11.62101544]
[1773094376851,0.97352487,86.071,86.051,40.67355405]
[1773094377351,0.97352487,86.071,86.051,41.17183149]
[1773094378564,0.97352487,86.071,86.051,40.67355405]
[1773094378866,0.97352487,86.071,86.051,11.62101544]
[1773094380967,0.97352487,86.069,86.041,11.62236608]
[1773094381873,0.97352487,86.069,86.041,40.67828128]
[1773094382065,0.97352487,86.068,86.041,40.67828128]
[1773094382376,0.97352487,86.068,86.042,0.49881325]
[1773094382958,0.97352487,86.068,86.044,0.49891555]
[1773094383158,0.97352487,86.089,86.044,0.49891555]
[1773094383779,1.02345868,86.088,86.051,0.49902882]
[1773094385059,1.02345868,86.088,86.061,0.49923204]
[1773094386271,1.02345868,86.088,86.052,40.67308138]
[1773094386272,0.1,86.15,86.081,0.99386704]
[1773094386478,29.0201575,86.148,86.1,4.14790853]
[1773094386672,11.7104431,86.13,86.1,4.14790853]
[1773094387657,0.1,86.13,86.101,11.61426696]